[Event "Titled Tuesday Blitz May 9 Early 2023"]
[White "Seemann, Jakub"]
[Black "Omariev, Maksim"]
[WhiteFideId "21874697"]
[BlackFideId "4193423"]
[WhiteElo "2364"]
[BlackElo "2367"]
[Result "1-0"]
[Round "02"]
[TimeControl "180+2"]
[Date "2023.05.09"]
[WhiteClock "0:02:21"]
[BlackClock "0:00:00"]

1. c4 {[%clk 0:03:00]}  e5 {[%clk 0:02:53]} 2. Nc3 {[%clk 0:03:01]}  Nc6 {[%clk 0:02:54]} 3. Nf3 {[%clk 0:03:01]}  Nf6 {[%clk 0:02:52]} 4. e4 {[%clk 0:03:01]}  Bb4 {[%clk 0:02:49]} 5. d3 {[%clk 0:03:01]}  d6 {[%clk 0:02:49]} 6. Be2 {[%clk 0:03:01]}  Bg4 {[%clk 0:02:41]} 7. O-O {[%clk 0:02:58]}  h6 {[%clk 0:02:27]} 8. a3 {[%clk 0:02:58]}  Bc5 {[%clk 0:02:25]} 9. b4 {[%clk 0:02:57]}  Bxf3 {[%clk 0:02:25]} 10. Bxf3 {[%clk 0:02:57]}  Bd4 {[%clk 0:02:25]} 11. Bd2 {[%clk 0:02:56]}  Qd7 {[%clk 0:02:22]} 12. Rb1 {[%clk 0:02:57]}  a6 {[%clk 0:02:12]} 13. Ne2 {[%clk 0:02:56]}  Nh7 {[%clk 0:02:01]} 14. Nxd4 {[%clk 0:02:55]}  Nxd4 {[%clk 0:02:01]} 15. Be3 {[%clk 0:02:56]}  Ng5 {[%clk 0:01:41]} 16. Bxd4 {[%clk 0:02:54]}  exd4 {[%clk 0:01:42]} 17. Be2 {[%clk 0:02:54]}  c5 {[%clk 0:01:35]} 18. f4 {[%clk 0:02:54]}  Ne6 {[%clk 0:01:35]} 19. bxc5 {[%clk 0:02:54]}  Nxc5 {[%clk 0:01:14]} 20. Qd2 {[%clk 0:02:54]}  Qe7 {[%clk 0:01:05]} 21. Qb4 {[%clk 0:02:53]}  O-O {[%clk 0:01:00]} 22. a4 {[%clk 0:02:50]}  a5 {[%clk 0:00:55]} 23. Qb5 {[%clk 0:02:49]}  f5 {[%clk 0:00:36]} 24. e5 {[%clk 0:02:43]}  dxe5 {[%clk 0:00:32]} 25. fxe5 {[%clk 0:02:42]}  Qxe5 {[%clk 0:00:32]} 26. Bf3 {[%clk 0:02:43]}  Qe3+ {[%clk 0:00:22]} 27. Kh1 {[%clk 0:02:42]}  Nxd3 {[%clk 0:00:15]} 28. h3 {[%clk 0:02:37]}  Rae8 {[%clk 0:00:04]} 29. Qxb7 {[%clk 0:02:36]}  Kh8 {[%clk 0:00:04]} 30. Qd5 {[%clk 0:02:33]}  Nf2+ {[%clk 0:00:03]} 31. Kh2 {[%clk 0:02:32]}  Qf4+ {[%clk 0:00:02]} 32. Kg1 {[%clk 0:02:33]}  Qe3 {[%clk 0:00:02]} 33. Rxf2 {[%clk 0:02:32]}  d3 {[%clk 0:00:02]} 34. Rd1 {[%clk 0:02:29]}  Rd8 {[%clk 0:00:02]} 35. Qxa5 {[%clk 0:02:22]}  d2 {[%clk 0:00:02]} 36. Rxd2 {[%clk 0:02:22]}  Qe1+ {[%clk 0:00:01]} 37. Kh2 {[%clk 0:02:21]}  Qe5+ {[%clk 0:00:00]} 38. Qxe5 {[%clk 0:02:21]} 1-0


[Site "https://www.chess.com"]

[Event "Titled Tuesday Blitz May 9 Early 2023"]
[White "dodoucb"]
[Black "Berezin, Viktor"]
[BlackFideId "14107872"]
[WhiteElo "2361"]
[BlackElo "2310"]
[Result "0-1"]
[Round "02"]
[TimeControl "180+2"]
[Date "2023.05.09"]
[WhiteClock "0:00:00"]
[BlackClock "0:00:34"]

1. Nf3 {[%clk 0:03:00]}  Nf6 {[%clk 0:02:53]} 2. c4 {[%clk 0:03:01]}  g6 {[%clk 0:02:53]} 3. Nc3 {[%clk 0:03:00]}  Bg7 {[%clk 0:02:54]} 4. d4 {[%clk 0:03:00]}  O-O {[%clk 0:02:55]} 5. e4 {[%clk 0:03:00]}  d6 {[%clk 0:02:55]} 6. Be2 {[%clk 0:03:00]}  Nc6 {[%clk 0:02:56]} 7. O-O {[%clk 0:03:00]}  e5 {[%clk 0:02:55]} 8. d5 {[%clk 0:03:01]}  Ne7 {[%clk 0:02:55]} 9. Ne1 {[%clk 0:03:01]}  Ne8 {[%clk 0:02:55]} 10. Nd3 {[%clk 0:03:02]}  f5 {[%clk 0:02:56]} 11. b4 {[%clk 0:03:00]}  f4 {[%clk 0:02:50]} 12. Bg4 {[%clk 0:02:58]}  g5 {[%clk 0:02:43]} 13. Bxc8 {[%clk 0:02:57]}  Qxc8 {[%clk 0:02:44]} 14. f3 {[%clk 0:02:56]}  h5 {[%clk 0:02:44]} 15. Nf2 {[%clk 0:02:55]}  Rf7 {[%clk 0:02:43]} 16. Bd2 {[%clk 0:02:53]}  Bf8 {[%clk 0:02:43]} 17. Rc1 {[%clk 0:02:53]}  Rg7 {[%clk 0:02:44]} 18. g3 {[%clk 0:02:46]}  Ng6 {[%clk 0:02:38]} 19. Kh1 {[%clk 0:02:42]}  a5 {[%clk 0:02:27]} 20. bxa5 {[%clk 0:02:33]}  Rxa5 {[%clk 0:02:28]} 21. a4 {[%clk 0:02:34]}  Ra8 {[%clk 0:02:28]} 22. Rg1 {[%clk 0:02:23]}  Be7 {[%clk 0:02:25]} 23. Qe2 {[%clk 0:02:02]}  Nf6 {[%clk 0:02:16]} 24. Nd3 {[%clk 0:01:31]}  b6 {[%clk 0:01:56]} 25. gxf4 {[%clk 0:01:12]}  gxf4 {[%clk 0:01:52]} 26. Rg2 {[%clk 0:01:08]}  Kh7 {[%clk 0:01:46]} 27. Rcg1 {[%clk 0:01:07]}  Qd7 {[%clk 0:01:45]} 28. Rg5 {[%clk 0:01:03]}  Rag8 {[%clk 0:01:39]} 29. Nf2 {[%clk 0:01:02]}  Nh4 {[%clk 0:01:31]} 30. Rxg7+ {[%clk 0:00:56]}  Rxg7 {[%clk 0:01:32]} 31. Rxg7+ {[%clk 0:00:55]}  Kxg7 {[%clk 0:01:33]} 32. Nb5 {[%clk 0:00:46]}  Nh7 {[%clk 0:01:28]} 33. a5 {[%clk 0:00:25]}  bxa5 {[%clk 0:01:29]} 34. Bxa5 {[%clk 0:00:25]}  Bd8 {[%clk 0:01:30]} 35. Nd3 {[%clk 0:00:17]}  Ng5 {[%clk 0:01:29]} 36. Ne1 {[%clk 0:00:17]}  Kh6 {[%clk 0:01:19]} 37. c5 {[%clk 0:00:09]}  dxc5 {[%clk 0:01:09]} 38. Bc3 {[%clk 0:00:09]}  Bf6 {[%clk 0:01:08]} 39. Ba5 {[%clk 0:00:09]}  Bd8 {[%clk 0:01:07]} 40. Bc3 {[%clk 0:00:09]}  Nf7 {[%clk 0:01:08]} 41. Nd3 {[%clk 0:00:08]}  Qh3 {[%clk 0:01:06]} 42. Bxe5 {[%clk 0:00:08]}  Nxe5 {[%clk 0:00:51]} 43. Nxe5 {[%clk 0:00:09]}  Bf6 {[%clk 0:00:51]} 44. Nd7 {[%clk 0:00:05]}  Qxd7 {[%clk 0:00:49]} 45. e5 {[%clk 0:00:04]}  Bg7 {[%clk 0:00:35]} 46. Nc3 {[%clk 0:00:00]}  Ng6 {[%clk 0:00:34]} 0-1


[Site "https://www.chess.com"]

[Event "Titled Tuesday Blitz May 9 Early 2023"]
[White "Frolyanov, Dmitry"]
[Black "Senft, Sean"]
[WhiteFideId "4151976"]
[BlackFideId "2044960"]
[WhiteElo "2395"]
[BlackElo "1989"]
[Result "1-0"]
[Round "02"]
[TimeControl "180+2"]
[Date "2023.05.09"]
[WhiteClock "0:00:14"]
[BlackClock "0:00:00"]

1. d4 {[%clk 0:03:00]}  d5 {[%clk 0:02:55]} 2. c4 {[%clk 0:03:00]}  c6 {[%clk 0:02:54]} 3. Nc3 {[%clk 0:02:59]}  Nf6 {[%clk 0:02:55]} 4. Nf3 {[%clk 0:02:57]}  a6 {[%clk 0:02:55]} 5. e3 {[%clk 0:02:47]}  Bf5 {[%clk 0:02:54]} 6. Ne5 {[%clk 0:02:43]}  Nbd7 {[%clk 0:02:48]} 7. Be2 {[%clk 0:02:19]}  g6 {[%clk 0:02:45]} 8. cxd5 {[%clk 0:02:05]}  cxd5 {[%clk 0:02:45]} 9. Qb3 {[%clk 0:02:00]}  Nb6 {[%clk 0:02:36]} 10. a4 {[%clk 0:01:46]}  Qc7 {[%clk 0:02:28]} 11. a5 {[%clk 0:01:41]}  Nbd7 {[%clk 0:02:13]} 12. Bd2 {[%clk 0:01:38]}  Nxe5 {[%clk 0:02:02]} 13. dxe5 {[%clk 0:01:37]}  Qxe5 {[%clk 0:01:55]} 14. Qxb7 {[%clk 0:01:35]}  Rb8 {[%clk 0:01:46]} 15. Qxa6 {[%clk 0:01:34]}  Bg7 {[%clk 0:01:46]} 16. Bb5+ {[%clk 0:01:26]}  Nd7 {[%clk 0:01:45]} 17. Qa7 {[%clk 0:01:12]}  O-O {[%clk 0:01:23]} 18. Bxd7 {[%clk 0:01:07]}  Ra8 {[%clk 0:01:23]} 19. Qb7 {[%clk 0:01:02]}  d4 {[%clk 0:00:56]} 20. O-O {[%clk 0:01:01]}  dxc3 {[%clk 0:00:21]} 21. Bxc3 {[%clk 0:01:02]}  Qc5 {[%clk 0:00:17]} 22. Bxg7 {[%clk 0:01:00]}  Kxg7 {[%clk 0:00:18]} 23. Bxf5 {[%clk 0:00:59]}  gxf5 {[%clk 0:00:16]} 24. a6 {[%clk 0:00:59]}  Ra7 {[%clk 0:00:15]} 25. Qb3 {[%clk 0:00:51]}  Rfa8 {[%clk 0:00:14]} 26. Qd3 {[%clk 0:00:50]}  Qb6 {[%clk 0:00:10]} 27. Qxf5 {[%clk 0:00:47]}  Qxb2 {[%clk 0:00:10]} 28. Rfb1 {[%clk 0:00:38]}  Qc3 {[%clk 0:00:10]} 29. Qb5 {[%clk 0:00:32]}  Qf6 {[%clk 0:00:10]} 30. Ra4 {[%clk 0:00:20]}  Rxa6 {[%clk 0:00:10]} 31. Rf4 {[%clk 0:00:19]}  Qg6 {[%clk 0:00:03]} 32. h4 {[%clk 0:00:18]}  Qxb1+ {[%clk 0:00:03]} 33. Qxb1 {[%clk 0:00:17]}  Ra1 {[%clk 0:00:04]} 34. Qxa1+ {[%clk 0:00:16]}  Rxa1+ {[%clk 0:00:04]} 35. Kh2 {[%clk 0:00:16]}  Kg6 {[%clk 0:00:04]} 36. Rg4+ {[%clk 0:00:16]}  Kf6 {[%clk 0:00:04]} 37. Rb4 {[%clk 0:00:15]}  Ra2 {[%clk 0:00:04]} 38. Kg3 {[%clk 0:00:15]}  e6 {[%clk 0:00:05]} 39. Kf3 {[%clk 0:00:15]}  Ra1 {[%clk 0:00:06]} 40. g4 {[%clk 0:00:15]}  Rh1 {[%clk 0:00:06]} 41. g5+ {[%clk 0:00:15]}  Kg6 {[%clk 0:00:06]} 42. Rf4 {[%clk 0:00:15]}  h6 {[%clk 0:00:06]} 43. Rf6+ {[%clk 0:00:14]}  Kg7 {[%clk 0:00:05]} 44. Rxh6 {[%clk 0:00:15]}  Rh3+ {[%clk 0:00:00]} 45. Kg2 {[%clk 0:00:14]} 1-0


[Site "https://www.chess.com"]

[Event "Titled Tuesday Blitz May 9 Early 2023"]
[White "Goffredo_Fofi"]
[Black "Fajdetic, Hrvoje"]
[BlackFideId "14501945"]
[WhiteElo "2536"]
[BlackElo "2185"]
[Result "1-0"]
[Round "02"]
[TimeControl "180+2"]
[Date "2023.05.09"]
[WhiteClock "0:01:26"]
[BlackClock "0:00:36"]

1. d4 {[%clk 0:03:00]}  e6 {[%clk 0:02:58]} 2. c4 {[%clk 0:03:00]}  f5 {[%clk 0:02:58]} 3. g3 {[%clk 0:03:00]}  Nf6 {[%clk 0:02:59]} 4. Bg2 {[%clk 0:03:01]}  Be7 {[%clk 0:02:59]} 5. Nf3 {[%clk 0:03:01]}  O-O {[%clk 0:03:00]} 6. O-O {[%clk 0:03:02]}  d6 {[%clk 0:03:01]} 7. Nc3 {[%clk 0:03:02]}  Ne4 {[%clk 0:02:59]} 8. Bd2 {[%clk 0:03:02]}  Nxc3 {[%clk 0:02:55]} 9. Bxc3 {[%clk 0:03:02]}  Bf6 {[%clk 0:02:55]} 10. Qc2 {[%clk 0:03:02]}  Nc6 {[%clk 0:02:56]} 11. e4 {[%clk 0:02:57]}  Qe8 {[%clk 0:02:19]} 12. Rae1 {[%clk 0:02:54]}  Qh5 {[%clk 0:02:11]} 13. exf5 {[%clk 0:02:48]}  exf5 {[%clk 0:02:09]} 14. d5 {[%clk 0:02:48]}  Nd8 {[%clk 0:01:43]} 15. Bxf6 {[%clk 0:02:20]}  Rxf6 {[%clk 0:01:44]} 16. Re7 {[%clk 0:02:19]}  f4 {[%clk 0:01:24]} 17. Rfe1 {[%clk 0:01:33]}  Bg4 {[%clk 0:01:05]} 18. Re8+ {[%clk 0:01:32]}  Rf8 {[%clk 0:01:05]} 19. Rxf8+ {[%clk 0:01:32]}  Kxf8 {[%clk 0:01:05]} 20. Qe4 {[%clk 0:01:30]}  fxg3 {[%clk 0:00:41]} 21. fxg3 {[%clk 0:01:30]}  Nf7 {[%clk 0:00:39]} 22. Qe7+ {[%clk 0:01:28]}  Kg8 {[%clk 0:00:36]} 23. Qe8+ {[%clk 0:01:26]} 1-0


[Site "https://www.chess.com"]

[Event "Titled Tuesday Blitz May 9 Early 2023"]
[White "The_Sherman_Variation"]
[Black "Hoffmann, Asa"]
[BlackFideId "2001470"]
[WhiteElo "2514"]
[BlackElo "2117"]
[Result "1/2-1/2"]
[Round "02"]
[TimeControl "180+2"]
[Date "2023.05.09"]
[WhiteClock "0:00:11"]
[BlackClock "0:00:16"]

1. e3 {[%clk 0:03:00]}  d6 {[%clk 0:02:55]} 2. b3 {[%clk 0:03:01]}  Nf6 {[%clk 0:02:55]} 3. Bb2 {[%clk 0:03:02]}  Nbd7 {[%clk 0:02:54]} 4. c4 {[%clk 0:03:02]}  e5 {[%clk 0:02:54]} 5. Nc3 {[%clk 0:03:03]}  g6 {[%clk 0:02:54]} 6. Qc2 {[%clk 0:03:03]}  Bg7 {[%clk 0:02:54]} 7. Nf3 {[%clk 0:03:04]}  O-O {[%clk 0:02:54]} 8. Be2 {[%clk 0:03:03]}  Re8 {[%clk 0:02:54]} 9. O-O {[%clk 0:03:03]}  c6 {[%clk 0:02:52]} 10. Ne1 {[%clk 0:03:03]}  d5 {[%clk 0:02:51]} 11. f4 {[%clk 0:03:03]}  d4 {[%clk 0:02:50]} 12. Nd1 {[%clk 0:02:57]}  exf4 {[%clk 0:02:36]} 13. Bxd4 {[%clk 0:02:52]}  fxe3 {[%clk 0:02:31]} 14. Nxe3 {[%clk 0:02:48]}  Nb6 {[%clk 0:02:27]} 15. Qb2 {[%clk 0:02:47]}  Nh5 {[%clk 0:02:26]} 16. Bxg7 {[%clk 0:02:46]}  Nxg7 {[%clk 0:02:25]} 17. Nf3 {[%clk 0:02:44]}  Be6 {[%clk 0:02:18]} 18. Rad1 {[%clk 0:02:38]}  a5 {[%clk 0:02:16]} 19. h4 {[%clk 0:02:34]}  h6 {[%clk 0:02:13]} 20. d4 {[%clk 0:02:30]}  Nf5 {[%clk 0:02:11]} 21. Nxf5 {[%clk 0:02:29]}  Bxf5 {[%clk 0:02:11]} 22. Bd3 {[%clk 0:02:27]}  Bg4 {[%clk 0:02:09]} 23. Qf2 {[%clk 0:02:25]}  Bxf3 {[%clk 0:02:04]} 24. Qxf3 {[%clk 0:02:26]}  Qxd4+ {[%clk 0:02:03]} 25. Rf2 {[%clk 0:02:23]}  Qg7 {[%clk 0:01:58]} 26. Rdf1 {[%clk 0:02:18]}  Rf8 {[%clk 0:01:55]} 27. h5 {[%clk 0:02:14]}  Rad8 {[%clk 0:01:51]} 28. Bb1 {[%clk 0:02:00]}  Nd7 {[%clk 0:01:51]} 29. Qe3 {[%clk 0:01:50]}  Ne5 {[%clk 0:01:48]} 30. Qb6 {[%clk 0:01:47]}  Rd7 {[%clk 0:01:36]} 31. hxg6 {[%clk 0:01:41]}  Nxg6 {[%clk 0:01:30]} 32. Qxa5 {[%clk 0:01:28]}  Qd4 {[%clk 0:01:29]} 33. Qh5 {[%clk 0:01:20]}  Kg7 {[%clk 0:01:29]} 34. Kh1 {[%clk 0:01:19]}  Qh4+ {[%clk 0:01:26]} 35. Qxh4 {[%clk 0:01:18]}  Nxh4 {[%clk 0:01:26]} 36. Rf4 {[%clk 0:01:17]}  Ng6 {[%clk 0:01:26]} 37. Rf6 {[%clk 0:01:11]}  Rfd8 {[%clk 0:01:15]} 38. R6f5 {[%clk 0:01:08]}  Re7 {[%clk 0:01:08]} 39. Kh2 {[%clk 0:01:00]}  Rd2 {[%clk 0:01:06]} 40. Kg3 {[%clk 0:00:58]}  Re3+ {[%clk 0:01:03]} 41. Kh2 {[%clk 0:00:55]}  Re7 {[%clk 0:01:00]} 42. R5f3 {[%clk 0:00:49]}  Ne5 {[%clk 0:00:59]} 43. Rg3+ {[%clk 0:00:48]}  Kf8 {[%clk 0:00:59]} 44. Rf6 {[%clk 0:00:45]}  h5 {[%clk 0:00:57]} 45. Bf5 {[%clk 0:00:42]}  Rxa2 {[%clk 0:00:48]} 46. Rh6 {[%clk 0:00:38]}  Ng6 {[%clk 0:00:35]} 47. Bxg6 {[%clk 0:00:36]}  fxg6 {[%clk 0:00:35]} 48. Rgxg6 {[%clk 0:00:34]}  Re3 {[%clk 0:00:31]} 49. Rxh5 {[%clk 0:00:32]}  Rxb3 {[%clk 0:00:30]} 50. Rh7 {[%clk 0:00:27]}  Rbb2 {[%clk 0:00:29]} 51. Kh3 {[%clk 0:00:22]}  Rf2 {[%clk 0:00:26]} 52. Rxb7 {[%clk 0:00:19]}  Rab2 {[%clk 0:00:24]} 53. Rxb2 {[%clk 0:00:18]}  Rxb2 {[%clk 0:00:24]} 54. Rxc6 {[%clk 0:00:19]}  Ke7 {[%clk 0:00:23]} 55. g4 {[%clk 0:00:19]}  Kd7 {[%clk 0:00:23]} 56. Rc5 {[%clk 0:00:20]}  Kd6 {[%clk 0:00:23]} 57. Rd5+ {[%clk 0:00:20]}  Ke6 {[%clk 0:00:23]} 58. Rd1 {[%clk 0:00:21]}  Rc2 {[%clk 0:00:23]} 59. Rd4 {[%clk 0:00:21]}  Ke5 {[%clk 0:00:23]} 60. Rd5+ {[%clk 0:00:21]}  Ke6 {[%clk 0:00:23]} 61. Rc5 {[%clk 0:00:21]}  Kd6 {[%clk 0:00:22]} 62. Rc8 {[%clk 0:00:16]}  Kd7 {[%clk 0:00:22]} 63. Rf8 {[%clk 0:00:15]}  Rxc4 {[%clk 0:00:22]} 64. Kh4 {[%clk 0:00:15]}  Ke7 {[%clk 0:00:22]} 65. Rf1 {[%clk 0:00:15]}  Rc8 {[%clk 0:00:20]} 66. Kh5 {[%clk 0:00:15]}  Rh8+ {[%clk 0:00:18]} 67. Kg5 {[%clk 0:00:13]}  Rg8+ {[%clk 0:00:18]} 68. Kh4 {[%clk 0:00:14]}  Rf8 {[%clk 0:00:18]} 69. Re1+ {[%clk 0:00:13]}  Kf7 {[%clk 0:00:18]} 70. g5 {[%clk 0:00:14]}  Kg7 {[%clk 0:00:18]} 71. Kg4 {[%clk 0:00:14]}  Rf7 {[%clk 0:00:18]} 72. Re6 {[%clk 0:00:14]}  Rd7 {[%clk 0:00:18]} 73. Kh5 {[%clk 0:00:14]}  Rc7 {[%clk 0:00:18]} 74. Rg6+ {[%clk 0:00:14]}  Kh7 {[%clk 0:00:18]} 75. Rh6+ {[%clk 0:00:15]}  Kg7 {[%clk 0:00:18]} 76. Ra6 {[%clk 0:00:15]}  Kh7 {[%clk 0:00:18]} 77. Rf6 {[%clk 0:00:12]}  Kg7 {[%clk 0:00:18]} 78. Rh6 {[%clk 0:00:12]}  Rd7 {[%clk 0:00:18]} 79. Rg6+ {[%clk 0:00:12]}  Kh7 {[%clk 0:00:18]} 80. Rf6 {[%clk 0:00:13]}  Kg7 {[%clk 0:00:18]} 81. Rf3 {[%clk 0:00:13]}  Rc7 {[%clk 0:00:18]} 82. Re3 {[%clk 0:00:13]}  Rb7 {[%clk 0:00:18]} 83. Re5 {[%clk 0:00:14]}  Rc7 {[%clk 0:00:18]} 84. Kg4 {[%clk 0:00:14]}  Rd7 {[%clk 0:00:18]} 85. Kf5 {[%clk 0:00:15]}  Rb7 {[%clk 0:00:18]} 86. Re6 {[%clk 0:00:14]}  Rc7 {[%clk 0:00:18]} 87. Rg6+ {[%clk 0:00:14]}  Kh7 {[%clk 0:00:18]} 88. Re6 {[%clk 0:00:13]}  Kg7 {[%clk 0:00:17]} 89. Re5 {[%clk 0:00:13]}  Rb7 {[%clk 0:00:17]} 90. Rd5 {[%clk 0:00:14]}  Rc7 {[%clk 0:00:17]} 91. Rd6 {[%clk 0:00:14]}  Rb7 {[%clk 0:00:17]} 92. Rd5 {[%clk 0:00:13]}  Rc7 {[%clk 0:00:18]} 93. g6 {[%clk 0:00:13]}  Rb7 {[%clk 0:00:16]} 94. Kg5 {[%clk 0:00:14]}  Rc7 {[%clk 0:00:16]} 95. Rf5 {[%clk 0:00:14]}  Rb7 {[%clk 0:00:16]} 96. Rc5 {[%clk 0:00:15]}  Ra7 {[%clk 0:00:16]} 97. Rb5 {[%clk 0:00:15]}  Rc7 {[%clk 0:00:16]} 98. Rd5 {[%clk 0:00:11]}  Rb7 {[%clk 0:00:16]} 1/2-1/2


[Site "https://www.chess.com"]

[Event "Titled Tuesday Blitz May 9 Early 2023"]
[White "Ardila, Oscar Humberto"]
[Black "Thorhallsson, Simon"]
[WhiteFideId "4404742"]
[BlackFideId "2310090"]
[WhiteElo "1918"]
[BlackElo "2108"]
[Result "0-1"]
[Round "02"]
[TimeControl "180+2"]
[Date "2023.05.09"]
[WhiteClock "0:00:51"]
[BlackClock "0:00:11"]

1. d4 {[%clk 0:02:59]}  Nf6 {[%clk 0:02:59]} 2. c4 {[%clk 0:02:58]}  g6 {[%clk 0:03:00]} 3. Nc3 {[%clk 0:02:59]}  Bg7 {[%clk 0:03:00]} 4. Nf3 {[%clk 0:02:59]}  O-O {[%clk 0:03:00]} 5. e3 {[%clk 0:03:00]}  c5 {[%clk 0:03:00]} 6. Be2 {[%clk 0:02:59]}  cxd4 {[%clk 0:03:00]} 7. Nxd4 {[%clk 0:03:00]}  d5 {[%clk 0:02:59]} 8. O-O {[%clk 0:02:57]}  dxc4 {[%clk 0:02:54]} 9. Bxc4 {[%clk 0:02:56]}  a6 {[%clk 0:02:54]} 10. h3 {[%clk 0:02:54]}  b5 {[%clk 0:02:51]} 11. Be2 {[%clk 0:02:53]}  Bb7 {[%clk 0:02:51]} 12. Bf3 {[%clk 0:02:53]}  Qb6 {[%clk 0:02:51]} 13. a4 {[%clk 0:02:45]}  b4 {[%clk 0:02:48]} 14. Na2 {[%clk 0:02:45]}  Rd8 {[%clk 0:02:42]} 15. Bxb7 {[%clk 0:02:42]}  Qxb7 {[%clk 0:02:42]} 16. Qf3 {[%clk 0:02:42]}  Qxf3 {[%clk 0:02:39]} 17. Nxf3 {[%clk 0:02:42]}  Nc6 {[%clk 0:02:37]} 18. Bd2 {[%clk 0:02:40]}  a5 {[%clk 0:02:26]} 19. Rac1 {[%clk 0:02:39]}  Rac8 {[%clk 0:02:26]} 20. Rc4 {[%clk 0:02:34]}  Nd7 {[%clk 0:01:37]} 21. b3 {[%clk 0:02:29]}  Nde5 {[%clk 0:01:32]} 22. Nxe5 {[%clk 0:02:26]}  Nxe5 {[%clk 0:01:31]} 23. Rxc8 {[%clk 0:02:25]}  Rxc8 {[%clk 0:01:32]} 24. Rc1 {[%clk 0:02:22]}  Rxc1+ {[%clk 0:01:31]} 25. Nxc1 {[%clk 0:02:22]}  Nd7 {[%clk 0:01:29]} 26. Kf1 {[%clk 0:02:20]}  Nc5 {[%clk 0:01:26]} 27. Ke2 {[%clk 0:02:19]}  Kf8 {[%clk 0:01:19]} 28. Kd1 {[%clk 0:02:15]}  Ke8 {[%clk 0:01:12]} 29. Kc2 {[%clk 0:02:13]}  Kd7 {[%clk 0:01:11]} 30. f3 {[%clk 0:02:13]}  Kc6 {[%clk 0:00:56]} 31. e4 {[%clk 0:02:12]}  Ne6 {[%clk 0:00:43]} 32. Kd3 {[%clk 0:02:05]}  Nc5+ {[%clk 0:00:25]} 33. Kc4 {[%clk 0:02:05]}  Nb7 {[%clk 0:00:25]} 34. Bf4 {[%clk 0:02:01]}  e5 {[%clk 0:00:17]} 35. Bg5 {[%clk 0:01:58]}  Nd6+ {[%clk 0:00:17]} 36. Kd3 {[%clk 0:01:59]}  f5 {[%clk 0:00:17]} 37. Bd8 {[%clk 0:01:54]}  fxe4+ {[%clk 0:00:17]} 38. fxe4 {[%clk 0:01:54]}  Nb7 {[%clk 0:00:18]} 39. Be7 {[%clk 0:01:54]}  Kd7 {[%clk 0:00:17]} 40. Bg5 {[%clk 0:01:53]}  Kc6 {[%clk 0:00:17]} 41. Be3 {[%clk 0:01:48]}  Bf8 {[%clk 0:00:17]} 42. Kc4 {[%clk 0:01:48]}  Bc5 {[%clk 0:00:17]} 43. Bg5 {[%clk 0:01:44]}  Nd6+ {[%clk 0:00:17]} 44. Kd3 {[%clk 0:01:44]}  Bd4 {[%clk 0:00:17]} 45. Ne2 {[%clk 0:01:44]}  Bb6 {[%clk 0:00:16]} 46. Bf6 {[%clk 0:01:42]}  Nb7 {[%clk 0:00:15]} 47. Be7 {[%clk 0:01:18]}  Bc5 {[%clk 0:00:15]} 48. Bf6 {[%clk 0:01:17]}  Bd6 {[%clk 0:00:15]} 49. Kc4 {[%clk 0:01:14]}  Nc5 {[%clk 0:00:15]} 50. Ng3 {[%clk 0:01:14]}  Nd7 {[%clk 0:00:15]} 51. Bg7 {[%clk 0:01:13]}  Nb6+ {[%clk 0:00:14]} 52. Kd3 {[%clk 0:01:13]}  Nd7 {[%clk 0:00:14]} 53. Nf1 {[%clk 0:01:09]}  Nc5+ {[%clk 0:00:14]} 54. Kc4 {[%clk 0:01:10]}  Nxe4 {[%clk 0:00:13]} 55. Ne3 {[%clk 0:01:06]}  Nd2+ {[%clk 0:00:13]} 56. Kd3 {[%clk 0:01:06]}  Nxb3 {[%clk 0:00:14]} 57. Nc4 {[%clk 0:01:05]}  Nc5+ {[%clk 0:00:14]} 58. Ke3 {[%clk 0:01:04]}  Bc7 {[%clk 0:00:14]} 59. Bxe5 {[%clk 0:01:01]}  Bxe5 {[%clk 0:00:11]} 60. Nxe5+ {[%clk 0:01:02]}  Kd5 {[%clk 0:00:11]} 61. Nf3 {[%clk 0:00:57]}  Nxa4 {[%clk 0:00:10]} 62. Kd3 {[%clk 0:00:58]}  Nc5+ {[%clk 0:00:10]} 63. Kc2 {[%clk 0:00:58]}  a4 {[%clk 0:00:11]} 64. g4 {[%clk 0:00:57]}  a3 {[%clk 0:00:10]} 65. Nd2 {[%clk 0:00:56]}  Kd4 {[%clk 0:00:10]} 66. h4 {[%clk 0:00:52]}  b3+ {[%clk 0:00:09]} 67. Nxb3+ {[%clk 0:00:52]}  Nxb3 {[%clk 0:00:09]} 68. Kxb3 {[%clk 0:00:52]}  Ke4 {[%clk 0:00:10]} 69. h5 {[%clk 0:00:52]}  g5 {[%clk 0:00:09]} 70. Kxa3 {[%clk 0:00:52]}  Kf4 {[%clk 0:00:10]} 71. Kb3 {[%clk 0:00:52]}  Kxg4 {[%clk 0:00:11]} 72. Kc3 {[%clk 0:00:51]}  Kxh5 {[%clk 0:00:11]} 0-1


[Site "https://www.chess.com"]

[Event "Titled Tuesday Blitz May 9 Early 2023"]
[White "Jaskolka, Tomasz"]
[Black "Zampronha, Wladimir Camilo"]
[WhiteFideId "1170791"]
[BlackFideId "2103087"]
[WhiteElo "2155"]
[BlackElo "2176"]
[Result "1-0"]
[Round "02"]
[TimeControl "180+2"]
[Date "2023.05.09"]
[WhiteClock "0:00:05"]
[BlackClock "0:00:04"]

1. d4 {[%clk 0:03:00]}  Nf6 {[%clk 0:02:59]} 2. Nc3 {[%clk 0:03:00]}  d5 {[%clk 0:02:58]} 3. Bf4 {[%clk 0:03:00]}  a6 {[%clk 0:02:56]} 4. e3 {[%clk 0:02:59]}  e6 {[%clk 0:02:57]} 5. Nf3 {[%clk 0:02:56]}  c5 {[%clk 0:02:58]} 6. Ne5 {[%clk 0:02:53]}  Nc6 {[%clk 0:02:57]} 7. Be2 {[%clk 0:02:51]}  Bd6 {[%clk 0:02:54]} 8. Nxc6 {[%clk 0:02:47]}  bxc6 {[%clk 0:02:53]} 9. Bxd6 {[%clk 0:02:45]}  Qxd6 {[%clk 0:02:52]} 10. dxc5 {[%clk 0:02:46]}  Qxc5 {[%clk 0:02:52]} 11. Qd4 {[%clk 0:02:46]}  Qd6 {[%clk 0:02:41]} 12. Na4 {[%clk 0:02:44]}  Rb8 {[%clk 0:02:39]} 13. O-O {[%clk 0:02:22]}  Rb4 {[%clk 0:02:35]} 14. Qc5 {[%clk 0:02:22]}  Qxc5 {[%clk 0:02:34]} 15. Nxc5 {[%clk 0:02:23]}  Rxb2 {[%clk 0:02:33]} 16. Bd3 {[%clk 0:02:02]}  Nd7 {[%clk 0:02:21]} 17. Nxa6 {[%clk 0:01:43]}  Bxa6 {[%clk 0:02:15]} 18. Bxa6 {[%clk 0:01:44]}  Rxc2 {[%clk 0:02:14]} 19. Rfc1 {[%clk 0:01:37]}  Rxc1+ {[%clk 0:02:13]} 20. Rxc1 {[%clk 0:01:38]}  Nb8 {[%clk 0:02:13]} 21. Bb7 {[%clk 0:01:36]}  Kd7 {[%clk 0:02:13]} 22. a4 {[%clk 0:01:35]}  Kc7 {[%clk 0:02:14]} 23. Rb1 {[%clk 0:01:36]}  Nd7 {[%clk 0:02:04]} 24. a5 {[%clk 0:01:31]}  Nc5 {[%clk 0:02:00]} 25. a6 {[%clk 0:01:30]}  Nxb7 {[%clk 0:01:42]} 26. Rxb7+ {[%clk 0:01:30]}  Kd6 {[%clk 0:01:43]} 27. a7 {[%clk 0:01:29]}  Ra8 {[%clk 0:01:36]} 28. Rxf7 {[%clk 0:01:30]}  g5 {[%clk 0:01:32]} 29. Rxh7 {[%clk 0:01:29]}  c5 {[%clk 0:01:32]} 30. g3 {[%clk 0:01:22]}  c4 {[%clk 0:01:31]} 31. Kf1 {[%clk 0:01:15]}  e5 {[%clk 0:01:31]} 32. h4 {[%clk 0:01:12]}  gxh4 {[%clk 0:01:30]} 33. gxh4 {[%clk 0:01:12]}  d4 {[%clk 0:01:30]} 34. exd4 {[%clk 0:01:13]}  exd4 {[%clk 0:01:31]} 35. Ke2 {[%clk 0:01:14]}  Kc5 {[%clk 0:01:19]} 36. h5 {[%clk 0:01:12]}  Kb4 {[%clk 0:01:19]} 37. h6 {[%clk 0:01:09]}  Kc3 {[%clk 0:01:18]} 38. Rd7 {[%clk 0:01:06]}  d3+ {[%clk 0:01:18]} 39. Kd1 {[%clk 0:00:58]}  Rg8 {[%clk 0:01:06]} 40. Rg7 {[%clk 0:00:56]}  Rf8 {[%clk 0:01:06]} 41. h7 {[%clk 0:00:25]}  Rxf2 {[%clk 0:00:58]} 42. Ke1 {[%clk 0:00:17]}  Rh2 {[%clk 0:00:55]} 43. Rg2 {[%clk 0:00:07]}  Rxg2 {[%clk 0:00:42]} 44. h8=Q+ {[%clk 0:00:07]}  Kc2 {[%clk 0:00:42]} 45. Qh7 {[%clk 0:00:05]}  Kc1 {[%clk 0:00:36]} 46. a8=Q {[%clk 0:00:05]}  d2+ {[%clk 0:00:35]} 47. Kf1 {[%clk 0:00:06]}  d1=Q+ {[%clk 0:00:27]} 48. Kxg2 {[%clk 0:00:06]}  Qe2+ {[%clk 0:00:25]} 49. Kg3 {[%clk 0:00:06]}  Qe5+ {[%clk 0:00:23]} 50. Kg4 {[%clk 0:00:06]}  Qe2+ {[%clk 0:00:14]} 51. Qf3 {[%clk 0:00:05]}  Qe6+ {[%clk 0:00:15]} 52. Qhf5 {[%clk 0:00:05]}  Qg8+ {[%clk 0:00:04]} 53. Qg5+ {[%clk 0:00:05]} 1-0


[Site "https://www.chess.com"]